bitfinex/quotes_SOLUSD_20220114
["timestamp","ask_amount","ask_price","bid_price","bid_amount"]
[1642172728896,2.727,146.73,146.64,14.29439993]
[1642172729092,2.727,146.73,146.64,14.54439993]
[1642172729593,2.977,146.73,146.64,24.76749993]
[1642172731403,2.727,146.73,146.64,24.76749993]
[1642172731798,2.727,146.73,146.64,30.76749993]
[1642172731999,30.14070508,146.74,146.64,30.76749993]
[1642172732200,2.726,146.78,146.64,31.02749993]
[1642172732407,46.6807,146.8,146.64,32.53385525]
[1642172732408,2.726,146.79,146.64,32.53385525]
[1642172732802,2.726,146.8,146.64,39.32522932]
[1642172733204,30.06883249,146.79,146.64,107.43522932]
[1642172733404,2.726,146.8,146.64,107.43522932]
[1642172733803,2.726,146.81,146.64,107.43522932]
[1642172734007,77.0873,146.85,146.64,107.43522932]
[1642172734008,2.726,146.83,146.64,107.43522932]
[1642172734304,30.37947111,146.82,146.74,10.2163]
[1642172734503,2.725,146.81,146.74,16.4663]
[1642172734703,2.725,146.86,146.74,2.725]
[1642172734908,10.955,146.86,146.69,8.23]
[1642172735102,1.70077588,146.85,146.68,8.23]
[1642172735302,10.955,146.84,146.68,8.23]
[1642172735504,34.30195297,146.83,146.7,10.2208]
[1642172735705,2.725,146.82,146.7,18.4508]
[1642172735903,2.725,146.82,146.71,2.725]
[1642172736104,2.725,146.82,146.71,0.25]
[1642172736704,12.9452,146.82,146.71,0.25]
[1642172737103,13.1952,146.82,146.71,0.25]
[1642172737304,13.1952,146.82,146.7,18.7007]
[1642172737305,10.73406853,146.82,146.7,18.7007]
[1642172737505,3.87953426,146.81,146.7,24.7007]
[1642172737703,3.87953426,146.81,146.74,10.2178]
[1642172738106,3.87953426,146.81,146.75,2.725]
[1642172738504,3.87953426,146.81,146.75,8.975]
[1642172738706,3.87953426,146.81,146.75,14.495]
[1642172739003,5.77235099,146.8,146.75,14.495]
[1642172739404,5.77235099,146.8,146.78,10.2143]
[1642172739603,5.77235099,146.8,146.79,3.03219996]
[1642172739803,5.77235099,146.8,146.79,6.06439993]
[1642172740003,2.724,146.88,146.8,50.77]
[1642172740207,2.724,146.88,146.8,10.954]
[1642172740405,2.724,146.88,146.81,1.51061504]
[1642172740705,0.0001,146.88,146.82,10.953]
[1642172740907,0.0001,146.88,146.84,10.2097]
[1642172741106,27.65659523,146.93,146.84,18.4397]
[1642172741306,2.723,146.92,146.84,18.6897]
[1642172741505,30.37959523,146.93,146.84,18.6897]
[1642172742108,0.25,146.93,146.84,18.6897]
[1642172742307,2.723,146.97,146.84,18.6897]
[1642172742506,2.723,146.97,146.84,24.9497]
[1642172742704,2.722,146.98,146.84,24.9497]
[1642172742905,2.722,146.98,146.84,26.46031504]
[1642172743406,2.722,146.98,146.84,24.9497]
[1642172744006,2.972,146.98,146.84,18.4397]
[1642172744207,23.11187588,146.98,146.79,43.77811504]
[1642172744408,30.56460352,146.96,146.8,10.0]
[1642172744608,2.723,146.95,146.81,8.23]
[1642172744806,2.723,146.95,146.82,2.723]
[1642172745007,32.2653794,146.96,146.83,8.23]
[1642172745207,2.723,146.95,146.83,8.23]
[1642172745411,2.723,146.97,146.87,10.2084]
[1642172745610,24.9904,146.99,146.88,2.722]
[1642172745821,15.57000895,146.96,146.87,12.9304]
[1642172746008,15.82000895,146.96,146.87,13.1804]
[1642172746215,15.82000895,146.96,146.87,12.9304]
[1642172746409,31.79887831,146.95,146.87,2.722]
[1642172746609,2.722,146.94,146.87,2.722]
[1642172746808,4.42277588,146.94,146.82,8.23]
[1642172747013,4.67277588,146.94,146.82,14.23]
[1642172747411,2.972,146.94,146.82,14.23]
[1642172747610,2.972,146.94,146.82,14.48]
[1642172747915,2.722,146.94,146.82,14.48]
[1642172748309,2.722,146.94,146.82,24.6916]
[1642172748509,34.52187831,146.95,146.82,24.6916]
[1642172748913,31.79887831,146.95,146.82,24.6916]
[1642172749410,2.723,146.94,146.82,24.6916]
[1642172749608,2.723,146.94,146.82,21.4146]
[1642172750413,13.185,146.94,146.82,8.48]
[1642172750813,13.185,146.94,146.82,7.98]
[1642172751017,2.973,146.94,146.82,82.09]
[1642172751417,2.973,146.94,146.82,13.98]
[1642172751717,1.70077588,146.93,146.82,13.73]
[1642172751916,27.32683577,146.92,146.82,13.73]
[1642172752214,27.32683577,146.92,146.82,7.98]
[1642172752414,2.723,146.92,146.82,7.98]
[1642172752617,2.973,146.92,146.82,7.98]
[1642172753247,2.723,146.92,146.82,76.09]
[1642172753452,2.723,146.94,146.82,76.09]
[1642172753648,2.723,146.94,146.83,2.723]
[1642172753851,25.29646772,146.93,146.84,8.23]
[1642172754249,2.723,146.92,146.84,8.23]
[1642172754451,4.42377588,146.95,146.84,8.48]
[1642172754651,12.45315996,146.96,146.85,2.723]
[1642172754855,9.73015996,146.96,146.86,10.2099]
[1642172755052,9.73015996,146.96,146.86,10.4599]
[1642172755252,43.20013978,146.97,146.86,10.4599]
[1642172755455,43.45013978,146.97,146.86,10.4599]
[1642172755951,18.29200895,146.97,146.87,8.23]
[1642172756154,23.0249,146.98,146.9,10.2078]
[1642172756356,27.4733,146.99,146.9,17.0138]
[1642172756554,24.7513,146.99,146.9,25.4938]
[1642172756754,24.7513,146.99,146.9,93.8638]
[1642172756955,24.7513,146.99,146.9,31.4938]
[1642172757155,50.76191999,146.99,146.9,25.4938]
[1642172757556,24.7513,146.99,146.9,25.4938]
[1642172757956,24.7513,146.99,146.9,25.7538]
[1642172758157,200.0,147.0,146.9,25.7538]
[1642172758759,200.0,147.0,146.91,68.11]
[1642172758962,200.0,147.0,146.92,10.951]
[1642172759159,200.0,147.0,146.96,10.2037]
[1642172760060,200.0,147.0,146.96,10.4637]
[1642172760861,200.0,147.0,146.96,10.2037]
[1642172761472,223.59922726,147.0,146.92,10.951]
[1642172761663,223.59922726,147.0,146.92,8.23]
[1642172761870,4.42177588,146.99,146.88,8.23]
[1642172762061,4.67177588,146.99,146.88,8.23]
[1642172762265,10.2099,146.98,146.97,0.02]
[1642172762461,13.1809,146.98,146.97,0.02]
[1642172762663,2.721,146.98,146.97,0.02]
[1642172762862,200.0,147.0,146.97,0.02]
[1642172763063,200.0,147.0,146.98,3.03219996]
[1642172763267,200.0,147.0,146.99,3.03219997]
[1642172763464,200.0,147.0,146.94,8.23]
[1642172763663,200.0,147.0,146.97,10.2029]
[1642172764064,200.0,147.0,146.97,10.7129]
[1642172764264,200.0,147.0,146.98,68.11]
[1642172764502,200.0,147.0,146.99,6.06439993]
[1642172764694,200.0,147.0,146.95,2.721]
[1642172764899,200.0,147.0,146.92,8.23]
[1642172765100,2.721,146.99,146.92,14.23]
[1642172765295,2.721,146.99,146.92,8.23]
[1642172765597,2.721,146.99,146.92,14.23]
[1642172765994,200.0,147.0,146.92,14.23]
[1642172766395,200.0,147.0,146.92,14.48]
[1642172766598,200.25,147.0,146.92,14.23]
[1642172766795,2.721,146.99,146.92,14.23]
[1642172766997,31.23260635,146.98,146.92,8.23]
[1642172767395,2.721,146.99,146.92,8.23]
[1642172768402,200.0,147.0,146.92,8.48]
[1642172768598,200.0,147.0,146.92,76.59]
[1642172769909,200.0,147.0,146.93,2.721]
[1642172770103,200.0,147.0,146.94,8.23]
[1642172770508,200.0,147.0,146.94,8.74]
[1642172770703,200.0,147.0,146.94,8.48]
[1642172770902,200.0,147.0,146.94,8.74]
[1642172771103,200.0,147.0,146.99,0.02]
[1642172772404,203.03219997,147.0,146.99,0.02]
[1642172772605,200.0,147.0,146.99,0.02]
[1642172772806,203.02780004,147.0,146.99,0.02]
[1642172773704,206.06000001,147.0,146.99,0.02]
[1642172775307,206.06000001,147.0,146.93,10.2063]
[1642172775516,206.06000001,147.0,146.94,9.8]
[1642172775808,216.51880001,147.0,146.92,9.8]
[1642172776011,2.721,146.99,146.92,9.8]
[1642172776911,2.721,146.99,146.92,20.0071]
[1642172777110,200.0,147.0,146.92,20.2571]
[1642172777309,200.0,147.0,146.93,1.51851329]
[1642172777508,200.0,147.0,146.94,9.8]
[1642172777908,200.0,147.0,146.94,10.05]
[1642172778109,200.0,147.0,146.97,10.2026]
[1642172779814,3.03219997,146.99,146.97,10.2026]
[1642172780013,6.06000001,146.99,146.97,10.2026]
[1642172780611,3.03219997,146.99,146.97,10.2026]
[1642172780811,200.0,147.0,146.97,10.2026]
[1642172781210,200.0,147.0,146.96,10.2046]
[1642172781511,200.0,147.0,146.96,10.4546]
[1642172783313,227.24338051,147.0,146.96,0.25]
[1642172783514,200.0,147.0,146.94,9.8]
[1642172783713,200.0,147.0,146.94,10.05]
[1642172784517,200.0,147.0,146.94,20.2559]
[1642172785119,200.0,147.0,146.94,20.0059]
[1642172786118,200.0,147.0,146.95,2.721]
[1642172786314,200.0,147.0,146.97,10.2021]
[1642172786917,200.0,147.0,146.97,10.4521]
[1642172788018,199.5,147.0,146.97,10.4521]
[1642172788417,199.5,147.0,146.97,20.2521]
[1642172789619,199.5,147.0,146.97,26.2521]
[1642172789819,131.503,147.0,146.97,20.2521]
[1642172790026,131.503,147.0,146.97,22.9731]
[1642172790223,131.503,147.0,146.97,28.9731]
[1642172790421,63.5115,147.0,146.97,22.9731]
[1642172790620,63.5115,147.0,146.97,23.2331]
[1642172790849,0.34167813,147.04,146.97,29.2331]
[1642172792149,0.34167813,147.04,146.97,97.0831]
[1642172792347,0.34167813,147.04,146.97,28.9731]
[1642172792549,2.72,147.03,146.97,22.7231]
[1642172792949,2.97,147.03,146.97,10.2021]
[1642172793149,2.97,147.03,146.93,9.8]
[1642172794050,2.72,147.03,146.93,9.8]
[1642172794250,2.72,147.03,146.93,11.31851329]
[1642172794449,2.72,147.03,146.93,79.93851329]
[1642172794652,2.72,147.03,146.93,89.88541329]
[1642172794850,0.34167813,147.04,146.94,2.721]
[1642172795051,0.34167813,147.04,146.95,9.8]
[1642172795452,0.34167813,147.04,146.95,10.31]
[1642172795951,0.34167813,147.04,146.95,16.31]
[1642172796350,0.34167813,147.04,146.97,10.2036]
[1642172796550,0.34167813,147.04,146.97,16.7136]
[1642172796752,0.34167813,147.04,146.98,9.8]
[1642172796952,0.34167813,147.04,146.98,16.05]
[1642172797351,0.34167813,147.04,147.01,10.1998]
[1642172797553,2.72,147.1,147.03,68.11]
[1642172797854,12.44915996,147.13,147.04,9.8]
[1642172798051,9.73015996,147.13,147.04,10.05]
[1642172798452,28.00162677,147.16,147.04,17.719]
[1642172799253,38.19772677,147.16,147.06,10.1963]
[1642172799453,28.00162677,147.16,147.07,9.8]
[1642172799654,25.28262677,147.16,147.07,12.518]
[1642172799853,25.28262677,147.16,147.08,68.11]
[1642172800054,25.28262677,147.16,147.09,12.518]
[1642172800257,25.28262677,147.16,147.11,10.1941]
[1642172800458,25.28262677,147.16,147.12,80.628]
[1642172800652,25.28262677,147.16,147.12,88.897]
[1642172800852,25.28262677,147.16,147.12,95.147]
[1642172801055,5.829821,147.16,147.12,95.147]
[1642172801255,5.829821,147.16,147.14,10.1893]
[1642172801457,5.829821,147.16,147.15,9.8]
[1642172801654,5.829821,147.16,147.15,15.129]
[1642172801855,5.829821,147.16,147.15,15.379]
[1642172802054,7.77309467,147.2,147.15,15.379]
[1642172802452,7.77309467,147.2,147.15,21.379]
[1642172802853,9.82415996,147.22,147.15,31.5674]
[1642172803055,3.88531173,147.17,147.15,31.5674]
[1642172803253,3.88531173,147.17,147.15,31.5874]
[1642172803452,3.88531173,147.17,147.15,26.2584]
[1642172803652,3.88531173,147.17,147.15,20.2584]
[1642172803853,3.88531173,147.18,147.15,20.2584]
[1642172804052,3.88531173,147.18,147.15,26.2584]
[1642172804858,3.88531173,147.18,147.15,20.2584]
[1642172805660,0.04,147.2,147.15,26.2584]
[1642172805661,3.88531173,147.17,147.15,26.2584]
[1642172805859,0.04,147.2,147.16,28.0]
[1642172806059,0.04,147.2,147.18,10.1873]
[1642172806259,0.04,147.2,147.18,19.9873]
[1642172806461,0.04,147.2,147.18,20.2373]
[1642172807863,0.04,147.2,147.18,26.2373]
[1642172808061,2.717,147.26,147.18,26.2373]
[1642172808265,2.717,147.28,147.18,26.2373]
[1642172808861,2.717,147.28,147.18,25.9873]
[1642172809063,12.6548,147.28,147.18,25.9873]
[1642172809863,2.467,147.28,147.18,19.9873]
[1642172810062,12.6549,147.28,147.18,9.8]
[1642172810863,12.4049,147.28,147.18,9.8]
[1642172811462,12.4049,147.28,147.18,19.9896]
[1642172812563,14.10567588,147.28,147.18,19.9896]
[1642172813164,9.99009467,147.28,147.18,19.9896]
[1642172813466,9.53009467,147.28,147.18,26.8646]
[1642172813866,9.53009467,147.28,147.18,27.3646]
[1642172814069,9.53009467,147.28,147.18,27.1146]
[1642172814369,0.04,147.28,147.18,20.7396]
[1642172814570,0.08,147.28,147.18,20.7596]
[1642172814968,2.296,147.29,147.18,20.7596]
[1642172815168,7.94415698,147.3,147.18,20.7596]
[1642172816671,1.94185886,147.2,147.18,26.7596]
[1642172816871,0.17106231,147.3,147.18,26.7596]
[1642172817100,0.17106231,147.3,147.18,94.8696]
[1642172817303,0.17106231,147.3,147.19,122.53]
[1642172817502,0.17106231,147.3,147.2,9.8]
[1642172817698,0.17106231,147.3,147.25,10.1792]
[1642172817897,0.17106231,147.3,147.26,9.8]
[1642172818098,7.77309467,147.31,147.27,28.0]
[1642172818298,7.77309467,147.31,147.27,9.8]
[1642172818500,15.53232427,147.34,147.27,16.05]
[1642172818899,446.87290272,147.37,147.28,10.1775]
[1642172819099,7.76370007,147.36,147.29,9.8]
[1642172819500,7.76370007,147.36,147.29,16.05]
[1642172820098,7.76370007,147.36,147.33,10.1758]
[1642172820298,15.25016471,147.44,147.33,18.2878]
[1642172820499,15.25016471,147.44,147.33,31.0508]
[1642172820898,148.4009,147.45,147.33,31.0508]
[1642172821100,2.713,147.47,147.33,31.0508]
[1642172821300,2.713,147.47,147.33,37.0508]
[1642172821899,1.70077588,147.46,147.33,22.6888]
[1642172822100,2.713,147.45,147.33,19.9758]
[1642172822501,1.70077588,147.44,147.33,9.8]
[1642172822701,2.713,147.43,147.28,2.713]
[1642172822902,35.59050703,147.42,147.28,2.713]
[1642172823101,2.714,147.41,147.28,2.713]
[1642172823304,68.11,147.39,147.23,9.8]
[1642172823604,80.625,147.38,147.33,0.02]
[1642172823808,9.8,147.37,147.33,0.02]
[1642172824002,31.00026595,147.36,147.22,36.6483]
[1642172824203,9.8,147.35,147.2,2.715]
[1642172824402,2.716,147.34,147.2,2.715]
[1642172824603,2.716,147.34,147.33,0.02]
[1642172824805,8.77600001,147.34,147.33,0.02]
[1642172825005,6.06000001,147.34,147.33,0.02]
[1642172825406,22.9778,147.39,147.33,0.02]
[1642172825705,2.714,147.41,147.33,5.415]
[1642172826505,2.714,147.41,147.33,5.665]
[1642172826906,2.714,147.41,147.33,0.02]
[1642172827110,1.70077588,147.33,147.17,2.714]
[1642172827305,1.70077588,147.33,147.07,2.716]
[1642172827306,122.53,147.29,147.07,2.716]
[1642172827507,122.53,147.2,147.06,0.00019273]
[1642172827709,3.15322236,147.22,147.01,6.8021]
[1642172827710,122.53,147.16,147.01,6.8021]
[1642172827908,10.1996,147.12,147.09,388.43274987]
[1642172828110,139.49381001,147.11,147.04,10.29759932]
[1642172828309,146.26600997,147.11,147.04,10.29759932]
[1642172828909,146.51600997,147.11,146.99,10.82915885]
[1642172829209,156.46640997,147.11,146.99,10.82915885]
[1642172829410,145.24778585,147.11,146.99,10.82915885]
[1642172829608,2.72,147.21,147.02,74.0]
[1642172829810,2.72,147.21,147.03,8.16159]
[1642172830009,3.15322236,147.22,147.04,2.718]
[1642172830210,3.15322236,147.22,147.05,16.31048]
[1642172830418,3.15322236,147.22,147.06,2.718]
[1642172830612,3.15322236,147.22,147.07,16.30937]
[1642172830810,3.15322236,147.22,147.08,2.718]
[1642172831011,2.718,147.21,147.09,16.30827]
[1642172831212,2.718,147.21,147.2,0.02]
[1642172831410,2.718,147.21,147.2,8.17]
[1642172831411,3.02780004,147.21,147.2,8.17]
[1642172832012,3.15322236,147.22,147.2,4.6224332]
[1642172832211,3.15322236,147.22,147.2,111.9124332]
[1642172833012,3.15322236,147.22,147.21,3.03219997]
[1642172833213,3.15322236,147.22,147.21,11.18219997]
[1642172833614,80.94647588,147.28,147.21,11.18219997]
[1642172833816,2.717,147.28,147.21,16.60219997]
[1642172834014,2.716,147.35,147.22,101.9]
[1642172834318,2.716,147.35,147.23,18.3326]
[1642172834519,2.716,147.35,147.23,18.5826]
[1642172834716,2.716,147.35,147.24,101.9]
[1642172834916,3.88214215,147.34,147.25,8.15]
[1642172835320,3.88214215,147.34,147.26,8.14885]
[1642172835615,3.88214215,147.34,147.27,8.15]
[1642172835815,3.88214215,147.34,147.28,2.715]
[1642172836015,3.88214215,147.34,147.29,8.15]
[1642172836215,3.88214215,147.34,147.28,0.25]
[1642172836418,3.88214215,147.34,147.29,8.15]
[1642172836616,3.88214215,147.37,147.3,8.15]
[1642172836818,14.06444215,147.37,147.3,8.15]
[1642172837026,2.714,147.36,147.3,8.15]
[1642172837219,1.714,147.36,147.3,8.15]
[1642172837622,2.714,147.37,147.3,8.15]
[1642172838026,2.714,147.38,147.3,8.15]
[1642172838227,3.88214215,147.39,147.3,8.15]
[1642172838422,2.714,147.38,147.3,8.15]
[1642172838622,3.88214215,147.36,147.3,8.15]
[1642172838822,0.08,147.34,147.3,8.15]
[1642172839023,0.08,147.34,147.31,2.715]
[1642172839221,0.08,147.34,147.32,11.18219997]
[1642172839823,3.88214215,147.37,147.32,21.36009997]
[1642172840025,3.88214215,147.37,147.33,2.714]
[1642172840223,3.88214215,147.37,147.34,8.15]
[1642172840424,594.24922458,147.45,147.35,5.74619997]
[1642172840625,2.713,147.43,147.36,8.15]
[1642172840825,2.713,147.44,147.36,8.15]
[1642172841024,2.713,147.44,147.36,23.6695]
[1642172841224,2.713,147.44,147.36,23.9195]
[1642172841626,3.87944241,147.42,147.36,23.9195]
[1642172841825,3.87944241,147.42,147.37,2.713]
[1642172842026,3.87944241,147.42,147.39,10.1735]
[1642172842228,3.87944241,147.42,147.4,3.03219997]
[1642172842628,6.90724245,147.42,147.38,8.15]
[1642172842828,3.02780004,147.42,147.38,8.15]
[1642172843528,6.59244241,147.44,147.38,8.15]
[1642172843928,3.87944241,147.41,147.38,8.15]
[1642172844133,3.02780004,147.4,147.39,3.03219997]
[1642172844332,3.87944241,147.41,147.39,11.18219997]
[1642172844932,3.87944241,147.43,147.39,11.18219997]
[1642172845730,6.59244241,147.47,147.39,11.18219997]
[1642172846133,3.87944241,147.47,147.39,11.18219997]
[1642172846930,3.87944241,147.46,147.39,11.18219997]
[1642172847132,3.87944241,147.46,147.39,21.35569997]
[1642172847929,3.87944241,147.47,147.39,21.35569997]
[1642172848130,6.59244241,147.47,147.39,21.35569997]
[1642172848332,6.59244241,147.47,147.39,29.36569997]
[1642172848532,3.87944241,147.47,147.4,2.713]
[1642172848733,3.87944241,147.47,147.43,10.1705]
[1642172848932,3.87944241,147.46,147.43,27.0205]
[1642172849131,3.87944241,147.46,147.44,3.03219997]
[1642172849536,3.87944241,147.46,147.45,10.862]
[1642172849734,0.07962902,147.48,147.45,10.862]
[1642172850134,3.87882406,147.47,147.45,8.15]
[1642172850338,3.87882406,147.47,147.46,3.03219997]
[1642172850634,3.87882406,147.47,147.46,19.85419997]
[1642172850858,3.87882406,147.47,147.46,30.02089997]
[1642172851063,3.87882406,147.47,147.46,32.48289997]
[1642172851260,3.87882406,147.47,147.46,29.77089997]
[1642172851462,0.07962902,147.48,147.46,29.77089997]
[1642172851663,1e-08,147.48,147.46,36.02089997]
[1642172851867,0.34056062,147.53,147.46,36.02089997]
[1642172852070,0.34056062,147.53,147.5,10.1622]
[1642172852260,0.34056062,147.53,147.51,13.89319997]
[1642172852460,0.34056062,147.53,147.51,14.14319997]
[1642172852660,0.34056062,147.53,147.51,13.89319997]
[1642172853060,3.02780004,147.52,147.48,10.1674]
[1642172853260,3.02780004,147.52,147.45,8.15]
[1642172853460,2.711,147.51,147.45,8.15]
[1642172853662,4.41177588,147.51,147.42,8.15]
[1642172853960,4.66177588,147.51,147.42,8.15]
[1642172854364,1.70077588,147.5,147.39,8.15]
[1642172854561,2.712,147.49,147.4,8.15]
[1642172854762,2.712,147.52,147.41,10.862]
[1642172854961,0.34056062,147.53,147.41,10.862]
[1642172855563,2.712,147.52,147.41,8.15]
[1642172855960,2.962,147.52,147.41,8.15]
[1642172856161,2.712,147.52,147.41,8.15]
[1642172856564,13.1338,147.52,147.41,8.15]
[1642172857164,14.83457588,147.52,147.38,2.712]
[1642172857364,14.83457588,147.52,147.35,8.15]
[1642172859964,13.1338,147.52,147.35,8.15]
[1642172860166,13.1338,147.52,147.35,18.3252]
[1642172860364,27.59775988,147.5,147.35,8.15]
[1642172860565,25.81968194,147.42,147.35,8.15]
[1642172860766,2.713,147.41,147.29,10.863]
[1642172860968,2.713,147.41,147.29,8.15]
[1642172861167,4.66377588,147.41,147.25,8.15]
[1642172861471,28.06590278,147.39,147.25,8.15]
[1642172861667,10.1827,147.36,147.25,8.15]
[1642172861869,2.715,147.35,147.25,8.15]
[1642172862070,2.965,147.35,147.25,8.15]
[1642172862265,2.965,147.35,147.22,8.15]
[1642172862466,4.66577588,147.35,147.22,8.15]
[1642172862667,2.965,147.35,147.22,8.15]
[1642172863067,24.80028931,147.31,147.22,8.15]
[1642172863269,2.716,147.3,147.2,2.714]
[1642172863669,0.25,147.35,147.2,10.864]
[1642172863870,0.25,147.35,147.2,16.864]
[1642172864069,2.716,147.38,147.2,16.864]
[1642172864269,2.966,147.38,147.2,16.864]
[1642172864471,23.18400858,147.37,147.2,16.864]
[1642172864672,2.715,147.36,147.2,16.864]
[1642172865071,2.965,147.36,147.2,16.864]
[1642172865470,24.33340318,147.33,147.2,27.3009]
[1642172865671,27.04940318,147.33,147.2,27.3009]
[1642172865872,24.58340318,147.33,147.2,27.3009]
[1642172867074,24.58340318,147.33,147.2,16.864]
[1642172867275,2.716,147.32,147.2,14.15]
[1642172867472,13.1516,147.32,147.2,8.15]
[1642172867873,14.85237588,147.32,147.2,8.15]
[1642172868471,14.85237588,147.32,147.17,8.15]
[1642172869671,14.85237588,147.32,147.17,14.15]
[1642172870075,23.00237588,147.32,147.17,6.0]
[1642172870273,33.69925487,147.32,147.17,6.0]
[1642172870471,33.69925487,147.32,147.16,8.716]
[1642172870472,10.1948,147.24,147.16,8.716]
[1642172870671,33.9826,147.25,147.13,14.15]
[1642172870672,24.92652954,147.22,147.13,14.15]
[1642172870872,2.717,147.23,147.13,14.15]
[1642172870873,33.9826,147.25,147.14,2.717]
[1642172871076,34.2326,147.25,147.14,8.717]
[1642172871573,72.9609,147.31,147.15,8.15]
[1642172871872,72.9609,147.31,147.16,12.9058]
[1642172872073,25.42192068,147.32,147.17,8.15]
[1642172872274,25.42192068,147.32,147.18,2.716]
[1642172872475,25.42192068,147.32,147.19,8.15]
[1642172872675,25.42192068,147.32,147.2,2.716]
[1642172872875,25.42192068,147.32,147.21,18.3364]
[1642172873073,2.716,147.36,147.22,2.716]
[1642172873273,8.53501634,147.38,147.23,8.15]
[1642172873473,5.82001634,147.38,147.23,14.4]
[1642172874073,30.73692485,147.37,147.23,14.4]
[1642172874577,30.73692485,147.37,147.26,10.183]
[1642172874776,2.715,147.39,147.27,8.15]
[1642172874980,2.715,147.39,147.27,14.15]
[1642172875476,14.84827588,147.39,147.27,14.15]
[1642172875874,24.36337738,147.38,147.27,8.15]
[1642172876074,2.715,147.37,147.27,8.15]
[1642172876275,4.41577588,147.37,147.27,8.15]
[1642172876675,1.70077588,147.36,147.27,8.15]
[1642172876874,28.61700651,147.34,147.27,8.15]
[1642172878080,2.715,147.35,147.27,8.15]
[1642172878279,75.5258,147.4,147.27,8.15]
[1642172878280,2.715,147.39,147.27,8.15]
[1642172878880,2.715,147.39,147.27,18.3323]
[1642172879180,2.715,147.39,147.27,27.2943]
[1642172879381,75.5258,147.4,147.28,2.714]
[1642172879587,75.5258,147.4,147.29,8.15]
[1642172879780,2.714,147.39,147.29,8.15]
[1642172879981,75.5258,147.4,147.29,8.15]
[1642172880580,75.5258,147.4,147.29,8.4]
[1642172880788,75.7758,147.4,147.29,8.4]
[1642172880983,75.7758,147.4,147.29,8.15]
[1642172881183,31.94931903,147.39,147.29,8.15]
[1642172881585,32.19931903,147.39,147.29,8.15]
[1642172881783,31.94931903,147.39,147.29,8.15]
[1642172881986,32.19931903,147.39,147.29,14.4]
[1642172882183,31.94931903,147.39,147.29,14.4]
[1642172882385,29.48531903,147.39,147.29,14.4]
[1642172882587,29.23531903,147.39,147.29,14.4]
[1642172882784,2.714,147.41,147.29,24.5807]
[1642172882985,5.82001634,147.43,147.3,2.714]
[1642172883285,8.53401634,147.45,147.31,8.15]
[1642172883485,8.53401634,147.45,147.31,14.4]
[1642172883685,37.9741529,147.45,147.31,14.4]
[1642172883886,8.53401634,147.45,147.33,10.1781]
[1642172884087,2.714,147.45,147.34,8.15]
[1642172884288,5.82001634,147.47,147.34,8.15]
[1642172884528,5.82001634,147.47,147.34,14.66]
[1642172884688,5.82001634,147.47,147.34,16.168978]
[1642172884895,5.82001634,147.5,147.34,16.46929748]
[1642172885093,5.82001634,147.5,147.38,10.1745]
[1642172885287,5.82001634,147.5,147.39,10.862]
[1642172885488,5.82001634,147.5,147.39,17.112]
[1642172886089,0.34056062,147.53,147.44,10.1679]
[1642172886390,0.34056062,147.53,147.45,10.862]
[1642172886589,0.34056062,147.53,147.46,8.15]
[1642172886792,0.34056062,147.53,147.47,2.711]